fUST/lending_fUST_20240924
["ID","MTS","AMOUNT","RATE_DAILY","PERIOD"]
[339040295,1727166638855,-999.32902697,0.00024649,2]
[339040296,1727166638864,-380.0,0.00024658,2]
[339040297,1727166638873,-384.70231348,0.00024875,4]
[339040298,1727166638882,-164.49344774,0.00025,2]
[339040299,1727166638892,-44953.54076456,0.00025,2]
[339040300,1727166638902,-202.1167154,0.00025,2]
[339040301,1727166638911,-10364.0,0.00025,2]
[339040302,1727166638920,-344.4458257,0.00025,2]
[339040303,1727166638929,-187.7305978,0.00025,7]
[339040304,1727166638938,-54.29790536,0.00025,30]
[339040305,1727166638948,-500.0,0.00025073,2]
[339040306,1727166638957,-500.0,0.00025073,2]
[339040307,1727166638966,-500.0,0.00025073,2]
[339040308,1727166638975,-500.63062368,0.00025073,2]
[339040309,1727166638985,-230144.05917625,0.0002509,2]
[339040310,1727166638994,-1000.0,0.00025621,2]
[339040311,1727166639003,-1000.0,0.00025621,2]
[339040312,1727166639012,-420.0,0.00025761,2]
[339040313,1727166639021,-3000.0,0.00025925,2]
[339040314,1727166639030,-3136.12735835,0.00026,120]
[339040315,1727166639040,-420.0,0.00026124,2]
[339040316,1727166639049,-355.23846113,0.00026331,2]
[339040317,1727166639058,-1500.0,0.00026331,2]
[339040318,1727166639068,-164.554652,0.00026707,2]
[339040319,1727166639077,-173.47347,0.00026944,2]
[339040320,1727166639086,-24900.0,0.00027106,2]
[339040321,1727166639095,-1903.3960677,0.00027108,2]
[339040322,1727166639104,-2000.0,0.0002712,2]
[339040323,1727166639113,-333.6,0.000272,14]
[339040324,1727166639123,-500.0,0.00027397,2]
[339040325,1727166639132,-624.3587094,0.00027662,2]
[339040326,1727166639141,-1206.1677005,0.00027889,2]
[339040327,1727166639151,-1509.06671192,0.00027965,5]
[339040328,1727166639161,-216.3,0.00028489,4]
[339040329,1727166639171,-587.0,0.00028736,2]
[339040330,1727166639180,-216.3,0.00029689,4]
[339040331,1727166639190,-182.0366613,0.00029812,2]
[339040332,1727166639199,-331.0,0.0003,2]
[339040333,1727166639208,-504.5398,0.0003,30]
[339040334,1727166639217,-267.46,0.0003,120]
[339040335,1727166639226,-249.0,0.0003,2]
[339040337,1727166639235,-2792.09022402,0.0003,120]
[339040339,1727166639244,-1334.58593428,0.0003,3]
[339040341,1727166639253,-251.0,0.0003,2]
[339040342,1727166639263,-154.0,0.0003,2]
[339040343,1727166639272,-164.554652,0.00030347,2]
[339040344,1727166639282,-333.6,0.000304,14]
[339040345,1727166639291,-331.0,0.00030411,2]
[339040347,1727166639300,-249.0,0.00030411,2]
[339040349,1727166639309,-154.0,0.00030411,2]
[339040351,1727166639319,-250.0,0.00030582,2]
[339040352,1727166639328,-331.0,0.00030685,2]
[339040353,1727166639337,-216.3,0.0003089,5]
[339040354,1727166639346,-331.0,0.00030959,2]
[339040355,1727166639357,-4365.91525558,0.00031,120]
[339040356,1727166639366,-331.0,0.00031233,2]
[339040357,1727166639375,-480.0,0.000313,120]
[339040358,1727166639384,-1941.885253,0.000314,11]
[339040359,1727166639394,-735.5438,0.00031492,30]
[339040360,1727166639403,-480.0,0.000315,120]
[339040361,1727166639414,-763.0,0.0003161,2]
[339040362,1727166639424,-331.0,0.00031644,2]
[339040363,1727166639433,-249.0,0.00031644,2]
[339040364,1727166639442,-154.0,0.00031644,2]
[339040365,1727166639451,-480.0,0.000317,120]
[339040366,1727166639460,-480.0,0.000319,120]
[339040367,1727166639469,-1000.0,0.000319,11]
[339040368,1727166639479,-1006.83489601,0.00032,30]
[339040369,1727166639488,-500.0,0.00032,7]
[339040370,1727166639497,-500.0,0.00032,7]
[339040371,1727166639506,-24613.44,0.00032,30]
[339040372,1727166639515,-333.6,0.00032,14]
[339040373,1727166639524,-216.3,0.00032091,6]
[339040374,1727166639533,-480.0,0.000321,120]
[339040375,1727166639543,-311.271857,0.00032186,2]
[339040376,1727166639554,-480.0,0.000323,120]
[339040377,1727166639563,-48883.1057774,0.00032318,4]
[339040379,1727166639572,-500.0,0.00032328,30]
[339040380,1727166639582,-500.0,0.00032328,30]
[339040381,1727166639591,-500.0,0.00032328,30]
[339040382,1727166639601,-500.0,0.00032328,30]
[339040383,1727166639610,-500.0,0.00032328,30]
[339040384,1727166639619,-500.0,0.00032328,30]
[339040385,1727166639628,-500.0,0.00032328,30]
[339040386,1727166639638,-210.0217092,0.00032328,30]
[339040387,1727166639647,-150.0,0.00032332,2]
[339040388,1727166639656,-1000.0,0.000324,11]
[339040389,1727166639671,-153.0,0.00032411,2]
[339040390,1727166639681,-153.0,0.00032411,2]
[339040391,1727166639690,-153.0,0.00032411,2]
[339040392,1727166639700,-306.0,0.00032552,2]
[339040393,1727166639710,-153.0,0.00032552,2]
[339040394,1727166639719,-153.0,0.00032552,2]
[339040395,1727166639731,-153.0,0.00032552,2]
[339040396,1727166639743,-153.0,0.00032552,2]
[339040397,1727166639752,-153.0,0.00032552,2]
[339040398,1727166639761,-153.0,0.00032552,2]
[339040399,1727166639770,-153.0,0.00032552,2]
[339040400,1727166639779,-153.0,0.00032552,2]
[339040401,1727166639789,-153.0,0.00032552,2]
[339040402,1727166639799,-153.0,0.00032552,2]
[339040403,1727166639808,-153.0,0.00032552,2]
[339040404,1727166639817,-153.0,0.00032552,2]
[339040405,1727166639826,-306.0,0.00032552,2]
[339040406,1727166639835,-153.0,0.00032552,2]
[339040407,1727166639844,-153.0,0.00032552,2]
[339040408,1727166639854,-153.0,0.00032552,2]
[339040409,1727166639863,-153.0,0.00032552,2]
[339040410,1727166639872,-480.0,0.000326,120]
[339040411,1727166639881,-200.0,0.00032641,2]
[339040412,1727166639890,-1000.0,0.00032756,2]
[339040413,1727166639900,-2000.40042874,0.00032776,2]
[339040414,1727166639909,-150.0,0.000328,2]
[339040415,1727166639920,-3000.0,0.000328,13]
[339040416,1727166639929,-1629.619,0.000328,120]
[339040417,1727166639938,-3000.0,0.0003281,13]
[339040418,1727166639947,-3000.0,0.0003282,13]
[339040419,1727166639956,-3000.0,0.0003283,13]
[339040420,1727166639965,-97766.2115548,0.00032835,5]
[339040421,1727166639974,-3000.0,0.0003284,13]
[339040422,1727166639983,-272.4107815,0.0003284,2]
[339040423,1727166639993,-195532.42311,0.00032846,5]
[339040424,1727166640002,-3000.0,0.0003285,13]
[339040425,1727166640011,-3000.0,0.0003286,13]
[339040426,1727166640021,-3000.0,0.0003287,13]
[339040427,1727166640030,-433.56016349,0.00032873,5]
[339040428,1727166640039,-194.02988714,0.00032875,2]
[339040429,1727166640049,-3017.34676179,0.00032875,2]
[339040430,1727166640058,-2015.39241125,0.00032875,35]
[339040431,1727166640068,-500.0,0.00032876,14]
[339040432,1727166640077,-500.0,0.00032876,14]
[339040433,1727166640086,-500.73381848,0.00032876,14]
[339040434,1727166640095,-500.0,0.00032876,14]
[339040435,1727166640105,-500.0,0.00032876,14]
[339040436,1727166640114,-383.54,0.00032876,14]
[339040437,1727166640124,-500.65746054,0.00032876,14]
[339040438,1727166640133,-500.0,0.00032876,14]
[339040439,1727166640143,-506.81226098,0.00032876,14]
[339040440,1727166640152,-503.51358545,0.00032876,14]
[339040441,1727166640161,-500.0,0.00032876,14]
[339040442,1727166640170,-500.0,0.00032876,14]
[339040443,1727166640180,-500.0,0.00032876,14]
[339040444,1727166640190,-500.0,0.00032876,14]
[339040445,1727166640199,-503.8198438,0.00032876,14]
[339040446,1727166640209,-500.0,0.00032876,14]
[339040447,1727166640217,-584.73,0.00032876,14]
[339040448,1727166640227,-150.0,0.00032876,14]
[339040449,1727166640236,-500.0,0.00032876,14]
[339040450,1727166640245,-500.0,0.00032876,14]
[339040451,1727166640254,-502.1297426,0.00032876,14]
[339040452,1727166640264,-500.0,0.00032876,14]
[339040453,1727166640273,-500.0,0.00032876,14]
[339040454,1727166640282,-500.0,0.00032876,14]
[339040455,1727166640291,-500.0,0.00032876,14]
[339040456,1727166640300,-500.0,0.00032876,14]
[339040457,1727166640310,-500.0,0.00032876,14]
[339040458,1727166640319,-500.0,0.00032876,14]
[339040459,1727166640329,-505.56328738,0.00032876,14]
[339040460,1727166640339,-500.0,0.00032876,14]
[339040461,1727166640348,-500.0,0.00032876,14]
[339040462,1727166640357,-500.0,0.00032876,14]
[339040463,1727166640366,-505.08885621,0.00032876,14]
[339040464,1727166640375,-500.0,0.00032876,14]
[339040465,1727166640384,-501.8253248,0.00032876,14]
[339040466,1727166640394,-500.0,0.00032876,14]
[339040467,1727166640403,-500.0,0.00032876,14]
[339040468,1727166640413,-500.90057592,0.00032876,14]
[339040469,1727166640422,-500.0,0.00032876,14]
[339040470,1727166640430,-500.0,0.00032876,14]
[339040471,1727166640440,-649.12001302,0.00032876,14]
[339040472,1727166640449,-503.59128407,0.00032876,14]
[339040473,1727166640458,-500.0,0.00032876,14]
[339040474,1727166640467,-500.0,0.00032876,14]
[339040475,1727166640476,-500.0,0.00032876,14]
[339040476,1727166640485,-503.14754031,0.00032876,14]
[339040477,1727166640494,-513.79093399,0.00032876,14]
[339040478,1727166640504,-505.33155576,0.00032876,14]
[339040479,1727166640513,-282.57575242,0.00032876,14]
[339040480,1727166640522,-502.4267533,0.00032876,14]
[339040481,1727166640616,-501.89863553,0.00032876,14]
[339040482,1727166640625,-500.0,0.00032876,14]
[339040483,1727166640634,-501.06291381,0.00032876,14]
[339040484,1727166640644,-502.33356759,0.00032876,14]
[339040485,1727166640653,-500.0,0.00032876,14]
[339040486,1727166640662,-500.0,0.00032876,14]
[339040487,1727166640676,-500.0,0.00032876,14]
[339040488,1727166640685,-234.85202352,0.00032876,14]
[339040489,1727166640694,-500.0,0.00032876,14]
[339040490,1727166640703,-501.01179807,0.00032876,14]
[339040491,1727166640714,-500.0,0.00032876,14]
[339040492,1727166640723,-502.90879983,0.00032876,14]
[339040493,1727166640732,-251.61202634,0.00032876,2]
[339040494,1727166640741,-503.60025818,0.00032876,14]
[339040495,1727166640752,-500.0,0.00032876,14]
[339040496,1727166640761,-200.0,0.00032876,7]
[339040497,1727166640770,-500.0,0.00032876,2]
[339040498,1727166640780,-500.0,0.00032876,14]
[339040499,1727166640789,-564.18,0.00032876,14]
[339040500,1727166640799,-500.0,0.00032876,14]
[339040501,1727166640808,-500.0,0.00032876,14]
[339040502,1727166640817,-185.0238154,0.00032876,14]
[339040503,1727166640826,-505.93899979,0.00032876,14]
[339040504,1727166640836,-500.0,0.00032876,14]
[339040505,1727166640845,-502.79801482,0.00032876,14]
[339040506,1727166640854,-512.70794387,0.00032876,14]
[339040507,1727166640863,-501.38503107,0.00032876,14]
[339040508,1727166640872,-500.0,0.00032876,14]
[339040509,1727166640881,-500.0,0.00032876,14]
[339040510,1727166640890,-500.0,0.00032876,14]
[339040511,1727166640899,-500.0,0.00032876,14]
[339040512,1727166640909,-500.0,0.00032876,14]
[339040513,1727166640920,-500.0,0.00032876,14]
[339040514,1727166640929,-500.0,0.00032876,14]
[339040515,1727166640938,-500.0,0.00032876,14]
[339040516,1727166640948,-502.76902467,0.00032876,14]
[339040517,1727166640958,-189.46026008,0.00032876,14]
[339040518,1727166640967,-500.0,0.00032876,14]
[339040519,1727166640976,-500.0,0.00032876,14]
[339040520,1727166640986,-505.03647372,0.00032876,14]
[339040521,1727166640994,-500.0,0.00032876,14]
[339040522,1727166641003,-500.0,0.00032876,14]
[339040523,1727166641013,-500.0,0.00032876,14]
[339040524,1727166641022,-500.0,0.00032876,14]
[339040525,1727166641031,-380.71558085,0.00032876,14]
[339040526,1727166641040,-501.59924078,0.00032876,14]
[339040527,1727166641050,-500.0,0.00032876,14]
[339040528,1727166641059,-500.0,0.00032876,14]
[339040529,1727166641068,-500.0,0.00032876,14]
[339040530,1727166641078,-501.85945878,0.00032876,14]
[339040531,1727166641087,-508.97367995,0.00032876,14]
[339040532,1727166641096,-500.0,0.00032876,14]
[339040533,1727166641105,-502.28876441,0.00032876,14]
[339040534,1727166641114,-506.02266922,0.00032876,14]
[339040535,1727166641123,-500.0,0.00032876,14]
[339040536,1727166641132,-503.42355886,0.00032876,14]
[339040537,1727166641142,-363.90562904,0.00032876,14]
[339040538,1727166641151,-500.0,0.00032876,14]
[339040539,1727166641160,-502.23685426,0.00032876,14]
[339040540,1727166641170,-500.0,0.00032876,14]
[339040541,1727166641179,-500.0,0.00032876,14]
[339040542,1727166641188,-505.88408799,0.00032876,14]
[339040543,1727166641197,-640.79797533,0.00032876,14]
[339040544,1727166641207,-500.0,0.00032876,14]
[339040545,1727166641216,-503.17458887,0.00032876,14]
[339040546,1727166641225,-500.0,0.00032876,14]
[339040547,1727166641235,-502.70761251,0.00032876,14]
[339040548,1727166641245,-500.0,0.00032876,14]
[339040549,1727166641255,-503.28115464,0.00032876,14]
[339040550,1727166641264,-500.0,0.00032876,14]
[339040551,1727166641273,-500.0,0.00032876,14]
[339040552,1727166641282,-500.0,0.00032876,14]
[339040553,1727166641292,-500.0,0.00032876,14]
[339040554,1727166641301,-505.97665765,0.00032876,14]
[339040555,1727166641311,-500.0,0.00032876,14]
[339040556,1727166641319,-500.0,0.00032876,14]
[339040557,1727166641328,-502.45885656,0.00032876,14]
[339040558,1727166641338,-500.0,0.00032876,10]
[339040559,1727166641347,-500.78578628,0.00032876,14]
[339040560,1727166641356,-503.95313366,0.00032876,14]
[339040561,1727166641366,-500.0,0.00032876,14]
[339040562,1727166641375,-500.0,0.00032876,14]
[339040563,1727166641386,-501.70604804,0.00032876,14]
[339040564,1727166641396,-500.0,0.00032876,2]
[339040565,1727166641405,-509.42840549,0.00032876,14]
[339040566,1727166641418,-508.09646299,0.00032876,14]
[339040567,1727166641428,-500.0,0.00032876,14]
[339040568,1727166641437,-500.0,0.00032876,14]
[339040569,1727166641447,-500.0,0.00032876,14]
[339040570,1727166641457,-258.3852388,0.00032876,14]
[339040571,1727166641467,-500.0,0.00032876,14]
[339040572,1727166641477,-538.63059918,0.00032876,120]
[339040573,1727166641486,-500.0,0.00032876,14]
[339040574,1727166641496,-462.21674349,0.00032876,14]
[339040575,1727166641506,-502.86764603,0.00032876,14]
[339040576,1727166641515,-500.0,0.00032876,14]
[339040577,1727166641525,-500.0,0.00032876,14]
[339040578,1727166641535,-500.0,0.00032876,14]
[339040579,1727166641545,-500.0,0.00032876,14]
[339040580,1727166641556,-927.59,0.00032876,14]
[339040581,1727166641566,-509.06166717,0.00032876,14]
[339040582,1727166641576,-364.90711757,0.00032876,14]
[339040583,1727166641586,-508.06438246,0.00032876,14]
[339040584,1727166641595,-500.0,0.00032876,14]
[339040585,1727166641605,-500.0,0.00032876,2]
[339040586,1727166641614,-508.68177542,0.00032876,14]
[339040587,1727166641624,-500.0,0.00032876,14]
[339040588,1727166641634,-500.0,0.00032876,14]
[339040589,1727166641645,-500.0,0.00032876,14]
[339040590,1727166641654,-500.0,0.00032876,14]
[339040591,1727166641670,-502.51974901,0.00032876,14]
[339040592,1727166641683,-322.81617905,0.00032876,14]
[339040593,1727166641692,-507.74986757,0.00032876,14]
[339040594,1727166641702,-500.0,0.00032876,14]
[339040595,1727166641711,-500.0,0.00032876,14]
[339040596,1727166641720,-500.0,0.00032876,14]
[339040597,1727166641730,-500.0,0.00032876,14]
[339040598,1727166641740,-562.62190692,0.00032876,14]
[339040599,1727166641749,-510.7760242,0.00032876,14]
[339040600,1727166641758,-500.0,0.00032876,14]
[339040601,1727166641768,-500.0,0.00032876,14]
[339040602,1727166641777,-505.90546695,0.00032876,14]
[339040603,1727166641787,-500.0,0.00032876,14]
[339040604,1727166641797,-500.0,0.00032876,14]
[339040605,1727166641806,-598.30410554,0.00032876,2]
[339040606,1727166641815,-500.0,0.00032876,14]
[339040607,1727166641825,-500.0,0.00032876,14]
[339040608,1727166641834,-610.0367019,0.00032876,14]
[339040609,1727166641842,-500.0,0.00032876,14]
[339040610,1727166641852,-501.42413082,0.00032876,14]
[339040611,1727166641861,-500.0,0.00032876,14]
[339040612,1727166641870,-500.0,0.00032876,14]
[339040613,1727166641880,-500.0,0.00032876,14]
[339040614,1727166641890,-601.23,0.00032876,14]
[339040615,1727166641900,-300.76250974,0.00032876,14]
[339040616,1727166641909,-504.49070854,0.00032876,14]
[339040617,1727166641921,-507.20390431,0.00032876,14]
[339040618,1727166641930,-500.0,0.00032876,14]
[339040619,1727166641940,-500.0,0.00032876,14]
[339040620,1727166641949,-500.0,0.00032876,14]
[339040621,1727166641958,-502.35322054,0.00032876,14]
[339040622,1727166641968,-500.0,0.00032876,14]
[339040623,1727166641978,-500.0,0.00032876,14]
[339040624,1727166641987,-512.06895961,0.00032876,14]
[339040625,1727166641997,-500.0,0.00032876,14]
[339040626,1727166642008,-505.87453744,0.00032876,14]
[339040627,1727166642018,-502.60746646,0.00032876,14]
[339040628,1727166642028,-500.0,0.00032876,14]
[339040629,1727166642037,-500.0,0.00032876,14]
[339040630,1727166642048,-503.90263332,0.00032876,14]
[339040631,1727166642059,-500.0,0.00032876,14]
[339040632,1727166642068,-500.0,0.00032876,14]
[339040633,1727166642078,-2917.05,0.00032876,120]
[339040634,1727166642088,-507.02673291,0.00032876,14]
[339040635,1727166642097,-588.51867434,0.00032876,14]
[339040636,1727166642106,-479.0241984,0.00032876,14]
[339040637,1727166642116,-500.0,0.00032876,14]
[339040638,1727166642125,-500.0,0.00032876,14]
[339040639,1727166642136,-500.0,0.00032876,14]
[339040640,1727166642147,-402.20963813,0.00032876,14]
[339040641,1727166642156,-500.0,0.00032876,14]
[339040642,1727166642165,-504.82178185,0.00032876,14]
[339040643,1727166642174,-500.0,0.00032876,14]
[339040644,1727166642183,-200.0,0.00032876,14]
[339040645,1727166642193,-404.11320378,0.00032876,14]
[339040646,1727166642204,-500.0,0.00032876,5]
[339040647,1727166642214,-502.66579729,0.00032876,14]
[339040648,1727166642224,-500.0,0.00032876,14]
[339040649,1727166642233,-500.0,0.00032876,14]
[339040650,1727166642243,-500.0,0.00032876,14]
[339040651,1727166642252,-500.0,0.00032876,14]
[339040652,1727166642261,-500.0,0.00032876,14]
[339040653,1727166642270,-961.53,0.00032876,14]
[339040654,1727166642280,-507.19210302,0.00032876,14]
[339040655,1727166642289,-505.69888964,0.00032876,14]
[339040656,1727166642297,-512.72147994,0.00032876,14]
[339040657,1727166642307,-500.0,0.00032876,14]
[339040658,1727166642316,-500.0,0.00032876,14]
[339040659,1727166642325,-505.00347395,0.00032876,14]
[339040660,1727166642335,-505.47931923,0.00032876,14]
[339040661,1727166642345,-672.78,0.00032876,14]
[339040663,1727166642355,-609.7803794,0.00032876,14]
[339040665,1727166642365,-765.35,0.00032876,2]
[339040666,1727166642374,-500.0,0.00032876,14]
[339040667,1727166642384,-502.8176303,0.00032876,14]
[339040668,1727166642392,-500.0,0.00032876,14]
[339040669,1727166642402,-504.467003,0.00032876,14]
[339040670,1727166642412,-500.0,0.00032876,14]
[339040671,1727166642422,-385.63252677,0.00032876,14]
[339040672,1727166642432,-506.82373403,0.00032876,14]
[339040673,1727166642441,-328.10812098,0.00032876,14]
[339040674,1727166642450,-506.26819144,0.00032876,14]
[339040676,1727166642459,-500.0,0.00032876,14]
[339040678,1727166642469,-500.0,0.00032876,14]
[339040679,1727166642478,-521.19441591,0.00032876,14]
[339040680,1727166642487,-500.0,0.00032876,14]
[339040681,1727166642496,-500.0,0.00032876,10]
[339040682,1727166642505,-580.49,0.00032876,14]
[339040683,1727166642514,-500.0,0.00032876,14]
[339040684,1727166642523,-500.0,0.00032876,14]
[339040686,1727166642533,-500.0,0.00032876,14]
[339040687,1727166642542,-500.0,0.00032876,14]
[339040688,1727166642551,-500.0,0.00032876,14]
[339040689,1727166642561,-501.57545733,0.00032876,14]
[339040690,1727166642570,-510.67761271,0.00032876,14]
[339040691,1727166642580,-508.7672177,0.00032876,14]
[339040693,1727166642589,-500.0,0.00032876,14]
[339040698,1727166642679,-500.0,0.00032876,14]
[339040699,1727166642689,-506.36430358,0.00032876,14]
[339040700,1727166642699,-500.0,0.00032876,14]
[339040701,1727166642709,-506.68378167,0.00032876,14]
[339040702,1727166642719,-500.0,0.00032876,14]
[339040703,1727166642728,-500.0,0.00032876,14]
[339040704,1727166642738,-500.0,0.00032876,14]
[339040705,1727166642747,-500.0,0.00032876,14]
[339040706,1727166642756,-505.15753913,0.00032876,14]
[339040707,1727166642767,-500.0,0.00032876,14]
[339040708,1727166642777,-500.0,0.00032876,14]
[339040709,1727166642786,-503.12137799,0.00032876,14]
[339040710,1727166642796,-513.62247615,0.00032876,14]
[339040711,1727166642806,-500.0,0.00032876,14]
[339040712,1727166642815,-500.0,0.00032876,14]
[339040713,1727166642825,-500.0,0.00032876,14]
[339040714,1727166642834,-500.0,0.00032876,14]
[339040715,1727166642843,-399.80816064,0.00032876,14]
[339040716,1727166642853,-500.0,0.00032876,14]
[339040717,1727166642862,-500.0,0.00032876,14]
[339040718,1727166642872,-508.86854625,0.00032876,14]
[339040719,1727166642881,-501.92014254,0.00032876,14]
[339040720,1727166642890,-500.0,0.00032876,14]
[339040721,1727166642899,-602.8179419,0.00032876,14]
[339040722,1727166642909,-500.0,0.00032876,14]
[339040723,1727166642920,-500.0,0.00032876,14]
[339040724,1727166642930,-500.0,0.00032876,14]
[339040725,1727166642939,-500.0,0.00032876,14]
[339040726,1727166642949,-510.65051582,0.00032876,14]
[339040727,1727166642958,-500.0,0.00032876,14]
[339040728,1727166642967,-500.0,0.00032876,14]
[339040729,1727166642977,-500.0,0.00032876,14]
[339040730,1727166642987,-500.0,0.00032876,14]
[339040731,1727166642996,-502.13711395,0.00032876,14]
[339040732,1727166643006,-500.0,0.00032876,14]
[339040733,1727166643015,-500.0,0.00032876,14]
[339040734,1727166643024,-500.0,0.00032876,14]
[339040735,1727166643033,-513.27468799,0.00032876,14]
[339040736,1727166643042,-500.0,0.00032876,14]
[339040737,1727166643051,-507.50271927,0.00032876,14]
[339040738,1727166643060,-500.0,0.00032876,14]
[339040739,1727166643070,-500.0,0.00032876,120]
[339040740,1727166643080,-532.75035274,0.00032876,14]
[339040741,1727166643089,-500.0,0.00032876,14]
[339040742,1727166643099,-500.0,0.00032876,14]
[339040743,1727166643108,-500.0,0.00032876,14]
[339040744,1727166643118,-500.0,0.00032876,14]
[339040745,1727166643128,-500.0,0.00032876,14]
[339040746,1727166643138,-500.0,0.00032876,7]
[339040747,1727166643147,-502.6106029,0.00032876,14]
[339040748,1727166643157,-500.0,0.00032876,14]
[339040749,1727166643167,-182.28402854,0.00032876,14]
[339040750,1727166643176,-510.937219,0.00032876,14]
[339040751,1727166643186,-500.0,0.00032876,14]
[339040752,1727166643195,-510.26424694,0.00032876,14]
[339040753,1727166643203,-500.0,0.00032876,14]
[339040754,1727166643213,-502.28777492,0.00032876,14]
[339040755,1727166643223,-548.90148777,0.00032876,14]
[339040756,1727166643233,-500.0,0.00032876,14]
[339040757,1727166643244,-500.94287745,0.00032876,14]
[339040758,1727166643253,-249.71789282,0.00032876,14]
[339040759,1727166643264,-500.0,0.00032876,14]
[339040760,1727166643274,-517.74795961,0.00032876,14]
[339040761,1727166643283,-500.0,0.00032876,14]
[339040762,1727166643292,-500.0,0.00032876,14]
[339040763,1727166643302,-970.63,0.00032876,14]
[339040764,1727166643312,-506.74569083,0.00032876,14]
[339040765,1727166643323,-505.40314311,0.00032876,14]
[339040766,1727166643332,-224.57548771,0.00032876,14]
[339040767,1727166643343,-500.0,0.00032876,14]
[339040768,1727166643352,-500.0,0.00032876,14]
[339040769,1727166643362,-501.0810815,0.00032876,14]
[339040770,1727166643373,-500.0,0.00032876,14]
[339040771,1727166643382,-500.0,0.00032876,14]
[339040772,1727166643392,-500.0,0.00032876,14]
[339040773,1727166643401,-500.0,0.00032876,2]
[339040774,1727166643410,-509.23280219,0.00032876,14]
[339040775,1727166643420,-500.0,0.00032876,14]
[339040776,1727166643429,-500.0,0.00032876,14]
[339040777,1727166643439,-1023.51,0.00032876,14]
[339040778,1727166643448,-634.98124943,0.00032876,14]
[339040779,1727166643457,-500.0,0.00032876,14]
[339040780,1727166643467,-500.0,0.00032876,14]
[339040781,1727166643477,-959.95,0.00032876,14]
[339040782,1727166643488,-778.23,0.00032876,2]
[339040783,1727166643498,-500.0,0.00032876,14]
[339040784,1727166643508,-500.0,0.00032876,14]
[339040785,1727166643518,-500.0,0.00032876,14]
[339040786,1727166643528,-500.0,0.00032876,14]
[339040787,1727166643538,-502.40790724,0.00032876,14]
[339040788,1727166643547,-527.07371471,0.00032876,14]
[339040789,1727166643558,-500.0,0.00032876,14]
[339040790,1727166643567,-500.0,0.00032876,14]
[339040791,1727166643577,-1000.0,0.00032876,14]
[339040792,1727166643586,-622.42329188,0.00032876,14]
[339040793,1727166643595,-500.0,0.00032876,14]
[339040794,1727166643605,-514.02883265,0.00032876,14]
[339040795,1727166643615,-500.0,0.00032876,14]
[339040796,1727166643625,-500.0,0.00032876,14]
[339040797,1727166643634,-500.0,0.00032876,14]
[339040798,1727166643645,-500.11720814,0.00032876,14]
[339040799,1727166643655,-502.04910629,0.00032876,14]
[339040800,1727166643665,-504.28874571,0.00032876,14]
[339040801,1727166643678,-520.34350233,0.00032876,14]
[339040802,1727166643688,-597.5,0.00032876,14]
[339040803,1727166643697,-510.68399405,0.00032876,14]
[339040804,1727166643708,-503.49790405,0.00032876,14]
[339040805,1727166643717,-500.0,0.00032876,14]
[339040806,1727166643729,-500.0,0.00032876,14]
[339040807,1727166643739,-500.0,0.00032876,14]
[339040808,1727166643749,-570.25,0.00032876,14]
[339040809,1727166643759,-500.0,0.00032876,14]
[339040810,1727166643769,-500.0,0.00032876,14]
[339040811,1727166643779,-547.75874757,0.00032876,14]